{"text_format":"3","workbook":"xlsx","n_sheets":9,"sheets":["NOTAS","ESF- NS","EFECTIVO","INVETARIO","INGRESOS","C XP CORTO PLAZO","CUENTA POR COBRAR","C X P LARGO PLAZO","INGRESO Y EGRESO"],"not_rendered":{"images":2,"external_links":2},"read":"whole","date_system":"1900"}

{"sheet":"NOTAS","index":0,"n_rows":150,"n_cols":6,"rows_kept":150,"merged":[[20,0,20,6],[23,0,23,6],[29,0,29,6],[30,0,30,6],[31,0,31,6],[47,0,49,6],[51,0,52,6],[54,0,55,6],[64,0,65,6],[67,0,70,6],[72,0,75,6],[79,0,80,6],[85,0,86,6],[90,0,94,6],[96,0,97,6],[101,0,103,6],[105,0,106,6],[108,0,110,6],[116,0,117,6],[119,0,120,6],[123,0,124,6],[127,0,128,6],[137,0,138,6],[142,0,144,6],[146,0,147,6]]}
{"$rows_empty":20}
["Hospital General de Especialidades Dr. Mario Tolentino Dipp"]
[]
[]
["Estados Financieros\nAl 31 de julio del 2025\n"]
[]
[]
[]
[{"$nulls":5}," "]
[]
["Julio, 2025"]
["Santo Domingo de Guzmán"]
["República Dominicana"]
{"$rows_empty":13}
["1.      Entidad Económica"]
[]
["El Hospital General de Especialidades Dr. Mario Tolentino Dipp es una institución que ofrece servicios de salud a traves de los Servicios Regionales organizados en Red, de acuerdo a los valores y principios del Modelo de Atención, para contribuir a la salud de las personas, familias y comunidades."]
[]
[]
[]
["El Hospital General de Especialidades Dr. Mario Tolentino Dipp tiene su domicilio en la Av. Konrad Adenauer, Santo Domingo Norte, Santo Domingo, R.D."]
[]
[]
["Los principales directores del Hospital General de Especialidades Dr. Mario Tolentino Dipp son los siguientes:"]
[]
["Nombre   ",null,"Cargo    "]
[]
["Miguel A. Guzmán Fermín",null,"Director General"]
["Kelvin Modesto Segura",null,"Director Financiero Administrativo"]
["Veronica pastranos peña",null,"Contador"]
[]
["2.      Base de Presentación"]
[]
["Los estados financieros han sido preparados de conformidad con las Normas Internacionales de Contabilidad del Sector Público (NICSP), adoptadas por el Hospital General de Especialidades Dr. Mario Tolentino Dipp."]
[]
[]
["El Hospital General de Especialidades Dr. Mario Tolentino Dipp presenta su presupuesto aprobado según la base contable de efectivo y los estados financieros sobre la base de acumulación (o devengado) conforme a las estipulaciones de las Normas Internacionales de Contabilidad del Sector Público: Presentación de Información del Presupuesto en los Estados Financieros (NICSP No. 24)."]
[]
[]
[]
[]
["El presupuesto se aprueba según la base contable de efectivo siguiendo una clasificación de pago por objeto. El presupuesto aprobado cubre el período fiscal que va desde el 1ro. de enero hasta al  31 de diciembre  de 2025 y es incluido como información suplementaria en los estados financieros y sus notas."]
[]
[]
[]
[]
[]
[]
["La emisión y aprobación final de los estados financieros está autorizada por el Director Ejecutivo."]
[]
[]
[]
["3.\tMoneda Funcional y de Representación"]
[]
["Los estados financieros están presentados en pesos dominicanos (RD$) que es la moneda funcional de la Entidad. "]
[]
[]
["4.        Uso de estimados y juicios"]
[]
["La preparación de los Estados Financieros de conformidad con las Normas Internacionales de Contabilidad del Sector público (NICSP) requiere que la administración realice juicios, estimaciones y supuestos que afectan la aplicación de las políticas contables y los montos de los elementos de los estados financieros (activos, pasivos, ingresos y gastos) reportados. Los resultados reales pueden diferir de estas estimaciones."]
[]
[]
[]
[]
[]
["Las estimaciones y supuestos relevantes son revisados regularmente, los efectos de estas revisiones son reconocidas prospectivamente."]
[]
[]
["Medición de los valores razonables"]
[]
["La Entidad cuenta con un marco de control establecido en relación con el cálculo de los valores razonables y tiene la responsabilidad general por la supervisión de todas las mediciones significativas de éste, incluyendo los de Nivel 3."]
[]
[]
[]
["Cuando se mide el valor razonable de un activo o pasivo, el Hospital General de Especialidades Dr. Mario Tolentino Dipp utiliza, siempre que sea posible, precios cotizados en un mercado activo. "]
[]
[]
["Si el mercado para un activo o pasivo no es activo, la Entidad establecerá el valor razonable utilizando una técnica de valoración. Con ésta se busca establecer cuál sería, a la fecha de medición, el precio de una transacción realizada. "]
[]
[]
[]
["Los valores se clasifican en niveles distintos dentro de una jerarquía como sigue:"]
[]
["Nivel 1: Precios cotizados (no-ajustados) en mercados activos para activos o pasivos idénticos"]
[]
["Nivel 2: Datos diferentes de los precios cotizados incluidos en el Nivel 1, que sean observables para el activo o pasivo, ya sea directa (precios) o indirectamente (derivados de los precios)."]
[]
[]
["Nivel 3: Datos para el activo o pasivo que no se basan en datos de mercado observables (variables no observables). "]
[]
[]
[]
["Si las variables usadas para medir el valor razonable de un activo o pasivo pueden clasificarse en niveles distintos de la jerarquía del valor razonable, entonces la medición se clasifica en su totalidad en el mismo nivel de la jerarquía que la variable de nivel más bajo que sea significativa para la medición total."]
[]
[]
[]
["El Hospital General de Especialidades Dr. Mario Tolentino Dipp reconoce las transferencias entre los niveles de la jerarquía del valor razonable al final del período sobre el que se informa durante el que ocurrió el cambio."]
[]
[]
[]
["5.    Base de medición"]
[]
["Estos estados financieros han sido preparados sobre la base del costo histórico."]
[]
["6.    Resumen de políticas contables significativas"]
[]
["Aquí se detalla todo lo relacionado con las principales políticas contables significativas, aplicadas consistentemente a los períodos sobre los que se informa."]
[]
[]
["Cuentas por cobrar y por pagar"]
[]
["Las cuentas por cobrar serán medidas en el reconocimiento inicial, a la cantidad original de la facturación, si el defecto de la facturación es inmaterial. En caso de que el descuento sea material, las cuentas por cobrar serán medidas al valor razonable."]
[]
[]
[]
["Los pasivos son reconocidos cuando se ha recibido el bien o servicio que los genera, independiente del momento en el que se realiza el pago."]
[]
[]
["Los pasivos son dados de baja cuando los compromisos son saldados o expira el compromiso."]

{"sheet":"ESF- NS","index":1,"n_rows":78,"n_cols":13,"rows_kept":78,"merged":[[6,2,6,7],[7,2,7,7],[8,2,8,7],[10,2,10,7],[70,2,70,7],[76,5,76,7],[77,5,77,7]]}
[]
[]
[]
[]
[]
[]
[null,null,"HOSP. GNRAL DE ESPECIALIDAD DR, MARIO TOLENTINO DIPP "]
[null,null,"Estado de Situación Financiera"]
[null,null,"Del ejercicio terminado al 31  de Julio 2025"]
[]
[]
[]
[{"$nulls":5},2025,null,{"$f":"+[1]BC!G11","v":2016}]
["Mapeo",null,"Activos"]
[null,null,"Activos corrientes"]
["0001",null,null,"Efectivo y equivalentes de efectivo (Nota 7)",null,{"$f":"[2]Efectivo!C41","v":{"v":16738060.62,"d":"16,738,061"}}]
["0002",null,null,"Inversiones a corto plazo (Nota 8)"]
["0003",null,null,"Porción corriente de documentos por cobrar (Nota 9)"]
["0004",null,null,"Cuenta por cobrar a corto plazo (Notas 8)",null,{"$f":"'[2]Cuenta por Cobrar'!B21","v":{"v":15556861.96,"d":"15,556,862"}}]
["0005",null,null,"Inventarios (Nota 9)",null,{"$f":"[2]Inventario!B16","v":{"v":74809242.34,"d":"74,809,242"}}]
["0006",null,null,"Pagos anticipados (Nota 12)",null,null," ",null," "]
["0007",null,null,"Otros activos corrientes (Nota 13)"]
[null,null,"Total activos corrientes",null,null,{"$f":"SUM(F15:F22)","v":{"v":107104164.92,"d":"107,104,165"}},null,{"$f":"SUM(H15:H22)","v":0}]
[]
[null,null,"Activos no corrientes"]
["0008",null,null,"Cuentas por cobrar a largo plazo (Notas 14)",null,0]
["0009",null,null,"Documentos por cobrar (Nota 15)"]
["0010",null,null,"Inversiones a largo plazo (Nota 16)"]
["0011",null,null,"Otros activos financieros (Notas 17)"]
["0012",null,null,"Mobiliarios y equipos neto (Nota 10)",null,{"$f":"'[2]Mobiliario Eq. Ofc.'!H26","v":{"v":168946922.59,"d":"168,946,923"}}]
["0013",null,null,"Activos intangibles (Nota 10) "]
["0014",null,null,"Otros activos no financieros (Nota 20) "]
[null,null,"Total activos no corrientes",null,null,{"$f":"SUM(F26:F32)","v":{"v":168946922.59,"d":"168,946,923"}},null,{"$f":"SUM(H26:H32)","v":0}]
[]
[null,null,"Total activos",null,null,{"$f":"F23+F33","v":{"v":276051087.51,"d":"276,051,088"}},null,{"$f":"SUM(H33,H23)","v":0}]
[{"$nulls":3}," "]
[null,null,"Pasivos"]
[null,null,"Pasivos corrientes"]
["0015",null,null,"Sobregiro bancario (Nota 21)"]
["0016",null,null,"Cuentas por pagar a corto plazo (Nota 11)",null,{"$f":"'[2]CXP Corto plazo'!B17","v":{"v":849413.7,"d":"849,414"}}]
["0017",null,null,"Préstamos a corto plazo (Nota 23)"]
["0018",null,null,"Parte corriente de préstamos a largo plazo (Nota 24)"]
["0019",null,null,"Retenciones y acumulaciones por pagar (Nota 12)"]
["0020",null,null,"Provisiones a corto plazo (Nota 26)"]
["0021",null,null,"Beneficios a empleados a corto plazo (Nota 13)"]
["0022",null,null,"Pensiones (Nota 28)"]
["0023",null,null,"Otros pasivos corrientes (Nota 29)"]
[null,null,"Total pasivos corrientes",null,null,{"$f":"SUM(F39:F47)","v":{"v":849413.7,"d":"849,414"}},null,{"$f":"SUM(H39:H47)","v":0}]
[]
[null,null,"Pasivos no corrientes"]
["0024",null,null,"Cuentas por pagar a largo plazo (Nota 14)",null,{"$f":"'[2]CXP Largo Plazo'!B16","v":{"v":8328905.32,"d":"8,328,905"}}]
["0025",null,null,"Préstamos a largo plazo (Nota 31)"]
["0026",null,null,"Instrumentos de deuda (Nota 32)"]
["0027",null,null,"Provisiones a largo plazo (Nota 33)"]
["0028",null,null,"Beneficios a empleados a largo plazo (Nota 15)"]
["0029",null,null,"Otros pasivos no corrientes (Nota 35)"]
[null,null,"Total pasivos no corrientes",null,null,{"$f":"+F51+F55","v":{"v":8328905.32,"d":"8,328,905"}}]
[null,null,"Total pasivos ",null,null,{"$f":"+F48+F57","v":{"v":9178319.02,"d":"9,178,319"}},null,{"$f":"SUM(H48,H57)","v":0}]
[{"$nulls":12}," "]
[null,null,"Activos Netos/Patrimonio (Nota 16)",{"$nulls":6}," ",null,null," "]
["0030",null,null,"Capital",null,{"$f":"[2]Patrimonio!B14","v":{"v":266872768.49,"d":"266,872,768"}}]
["0031",null,null,"Reservas"]
["0032",null,null,"Resultados positivos (ahorro) / negativo (desahorro)",{"$nulls":7}," "," "]
["0033",null,null,"Resultados acumulados "]
["0034",null,null,"Intereses minoritarios"]
[null,null,"Total activos netos/patrimonio",null,null,{"$f":"+F61+F63+F64","v":{"v":266872768.49,"d":"266,872,768"}}]
[]
[null,null,"Total pasivos y activos netos/patrimonio",null,null,{"$f":"+F58+F66","v":{"v":276051087.51,"d":"276,051,088"}},null,{"$f":"+H58+H66","v":0},null,{"$f":"+F35-F68","v":0},null," "]
{"$rows_empty":8}
[{"$nulls":3},"Licda. Veronica pastranos",null,"Kelvin modesto Segura Herasme"]
[{"$nulls":3},"Encargado de Contabilidad",null,"Director Financiero"]

{"sheet":"EFECTIVO","index":2,"n_rows":41,"n_cols":6,"rows_kept":41,"merged":[[5,1,5,2],[6,1,6,2],[7,1,7,2],[8,1,8,2],[11,0,13,0],[11,1,13,1]]}
[]
[]
[]
[]
[]
[null,"HOSP. GNRAL DE ESPECIALIDAD DR, MARIO TOLENTINO DIPP "]
[null,"Nota # 7: Efectivo Caja y Bancos "]
[null,"Del ejercicio terminado Al 31 de Julio 2025"]
[null,"(Valores en RD$)"]
[]
[]
["# Cta.","Nombre de cuenta","Monto"]
[]
[]
[null,"Caja Chica",0]
[300105134,"Operaciones Ex PSS"]
[null," Fondo Salud Ex-PSS ",0]
["160-112014"," Servicio Nacional de Salud (Fondos Senasa)"]
["314-0000776"," Fondo Operativo ",0]
["240-020561-7","Cuenta Nueva Ranchito "]
["314-00145-4","Fondos Especiales CDC "]
["314-0000920-0","Cuenta VIH ",0]
["314-000181-0","Cuenta Tuberculosis ",0]
[null,"Venta de Servicios",{"v":16738060.62,"d":"16,738,060.62"}]
[null,"Cuenta Proyecto FGRSS(BID)"]
[null,"Anticipo Financieros"]
[null,"Cta. Nomina",0,null,null,0]
[null,"Total balance cuentas de bancarias del Reservas",{"$f":"C18+C22+C23+C24+C25+C26+C15","v":{"v":16738060.62,"d":"16,738,060.62"}}]
[null,null," "]
[]
["# Cta.","Tesoreria Nacional","Monto"]
[9995028000,"Fondo de la Direccion Central Servicio Nacional de Salud"]
[9995028001,"Sud- Cuenta Cuota de Pago Direccion Central Servicio Nacional de Salud"]
[2110003000,"Cuenta Direccion Central SNS"]
[9998014000,"Recaudacion Establecimiento de Salud PSS"]
[null,"Cuenta Colectora Recursos Directos PSS",0]
[100198000,"Sud- Cuenta Disponibilidad Direccion Central Servicio Nacional de Salud"]
[100198001,"Sub-Cuota de Pago Direccion Central Servicio Nacional de Salud"]
[null,"Total balance cuentas de bancarias tesoreria nacional",0]
[]
[null,"Total efectivo y equivalentes de efectivo",{"$f":"+C28+C39","v":{"v":16738060.62,"d":"16,738,060.62"}}]

{"sheet":"INVETARIO","index":3,"n_rows":16,"n_cols":4,"rows_kept":16,"merged":[[5,0,5,1],[6,0,6,1],[7,0,7,1],[8,0,8,1]]}
[]
[]
[]
[]
[]
["HOSP. GNRAL DE ESPECIALIDAD DR, MARIO TOLENTINO DIPP "]
["Nota # 9: Inventario"]
["Del ejercicio terminado Al 31 de julio 2025"]
["                                                                                                                                                                                                                                                                                                                                                                                                                                                                                                                                                                                                                                                                                                                                                                                                                                                                                                                                                                                                                                                                                                                                                                                                                                                                                                                                                                                                                                                                                                                                                                                                                                                                                                                                                                                                                                                                                                                                                                                                                                                                                                                                                                                                                                                                                                                                                                                                                                                                                                                                                                                                                                                                                                                                                                                                                                                                                                                                                                                                                                                                                                                                                                                                                                                                                                                                                                                                                                                                                                                                                                                                                                                                                                                                                                                                                                                                                                                                                                                                                                                                                                                                                                                                                                                                                                                                                                                                                                                                                                                                                                                                                                                                                                                                                                                                                                                                                                                                                                                                                                                                                                                                                                                                                                                                                                                                                                                                                                                                                                                                                                                                                                                                                                                                                                                                                                                                                                                                                                                                                                                                                                                                                                                                                                                                                                                                                                                                                                                                                                                                                                                                                                                                                                                                                                                                                                                                                                                                                                                                                                                                                                                                                                                                                                                                                                                                                                                                                                                                                                                                                                                                                                                                                                                                                                                                                                                                                                                                                                                                                                                                                                                                                                                                                                                                                                                                                                                                                                                                                                                                                                                                                                                                                                                                                                                                                                                                                                                                                                                                                                                                                                                                                                                                                                                                                                                                                                                                                                                                                                                                                                                                                                                                                                                                                                                                                                                                                                                                                                                                                                                                                                                                                                                                                                                                                                                                                                                                                                                                                                                                                                                                                                                                                                                                                                                                                                                                                                                                                                                                                                                                                                                                                                                                                                                                                                                                                                                                                                                                                                                                                                                                                                                                                                                                                                                                                                                                                                                                                                                                                                                                                                                                                                                                                                                                                                                                                                                                                                                                                                                                                                                                                                                                                                                                                                                                                                                                                                                                                                                                                                                                                                                                                                                                                                                                                                                                                                                                                                                                                                                                                                                                                            "]
[]
[]
["Descripción","Monto"]
["Inventario de Útiles  y Suministro  de Oficina",{"v":20132774.06,"d":"20,132,774.06"},null," "]
["Inventario Medicamentos",{"v":51517359.78,"d":"51,517,359.78"},null," "]
["Inventario de  Material Med. Quirurjicos. ",{"v":3159108.5,"d":"3,159,108.50"},null," "]
["Total Inventario",{"$f":"B13+B14+B15","v":{"v":74809242.34,"d":"74,809,242.34"}}]

{"sheet":"INGRESOS","index":4,"n_rows":32,"n_cols":2,"rows_kept":32,"merged":[[4,0,4,1],[5,0,5,1],[6,0,6,1],[7,0,7,1],[10,0,11,0],[10,1,11,1]]}
[]
[]
[]
[]
["HOSP. GNRAL DE ESPECIALIDAD DR, MARIO TOLENTINO DIPP "]
["Nota 17: Ingresos"]
["Del ejercicio terminado Al 31 de julio 2025"]
["(Valores en RD$)"]
[]
[]
["Ingresos con Contraprestacion de Servicios","Monto"]
[]
["Venta de Servicios",{"v":16738060.62,"d":"16,738,060.62"}]
["Sub-Total",{"$f":"SUM(B13)","v":{"v":16738060.62,"d":"16,738,060.62"}}]
[]
["Ingresos sin  Contraprestacion de Servicios",0]
["Otros Ingresos",0]
["Operaciones Ex PSS"]
[" Fondo Salud Ex-PSS "]
[" Fondo Operativo "]
["Cuenta Nueva Ranchito "]
["Fondos Especiales CDC "]
["Cuenta VIH "]
["Cuenta Tuberculosis "]
["Cuenta Proyecto FGRSS(BID)",0]
["Anticipo Financieros",0]
["Otros Ingresos"]
["Otras Donaciones Corrientes(Medicamentos)",0]
["Cuenta Direccion Central SNS"]
["Sud- Cuenta Disponibilidad Direccion Central Servicio Nacional de Salud"]
["Sub-Total",{"$f":"SUM(B17:B30)","v":{"v":0,"d":"0.00"}}]
["Total",{"$f":"+B14+B31","v":{"v":16738060.62,"d":"16,738,060.62"}}]

{"sheet":"C XP CORTO PLAZO","index":5,"n_rows":23,"n_cols":2,"rows_kept":23,"merged":[[5,0,5,1],[6,0,6,1],[7,0,7,1],[8,0,8,1]]}
[]
[]
[]
[]
[]
["HOSP. GNRAL DE ESPECIALIDAD DR, MARIO TOLENTINO DIPP "]
["Nota # 11: Cuentas por Pagar a Corto Plazo"]
["Del ejercicio terminado Al 31 de Julio 2025"]
["(Valores en RD$)"]
[]
[]
[]
["Detalle","Monto"]
["Fondos en Consignacion a Pagar",0]
["Transferencia sector Publico por Pagar",0]
["Cuentas por Pagar Suplidores",{"v":849413.7,"d":"849,413.70"}]
["Total Cuentas Por Pagar a Corto Plazo",{"$f":"+B16+B14+B15","v":{"v":849413.7,"d":"849,413.70"}}]
[]
[]
[]
[]
[]
[" "]

{"sheet":"CUENTA POR COBRAR","index":6,"n_rows":21,"n_cols":2,"rows_kept":21,"merged":[[4,0,4,1],[5,0,5,1],[6,0,6,1],[7,0,7,1],[11,0,13,0],[11,1,13,1]]}
[]
[]
[]
[]
["HOSP. GNRAL DE ESPECIALIDAD DR, MARIO TOLENTINO DIPP "]
["Notas # 8: Cuenta Por Cobrar"]
["Del ejercicio terminado Al 31 de Julio 2025"]
["(Valores en RD$)"]
[]
[]
[]
["Detalle","Monto"]
[]
[]
["Cuentas Por Cobrar  Colaboradores"]
["Otras  Cuentas Por Cobrar (Retencion IR-3)"]
["Cuentas por Cobrar Hospital Mario Tolentino Dipp"]
["Cuentas por Cobrar Proyecto FGBRSS"]
["Cuentas por Cobrar Ventas de Servicios ",{"v":15556861.96,"d":"15,556,861.96"}]
["Anticipos financieros",0]
["Total Cuentas Por Cobrar",{"$f":"B15+B16+B18+B19+B20+B17","v":{"v":15556861.96,"d":"15,556,861.96"}}]

{"sheet":"C X P LARGO PLAZO","index":7,"n_rows":39,"n_cols":2,"rows_kept":39,"merged":[[5,0,5,1],[6,0,6,1],[7,0,7,1],[8,0,8,1]]}
[]
[]
[]
[]
[]
["HOSP. GNRAL DE ESPECIALIDAD DR, MARIO TOLENTINO DIPP "]
["Nota #14: Cuentas por Pagar Largo Plazo"]
["Del ejercicio terminado Al 31 de Julio 2025"]
["(Valores en RD$)"]
[]
[]
[]
["Detalle","Monto"]
["Cuentas por Pagar   Largo Plazo  ",{"v":8328905.32,"d":"8,328,905.32"}]
[]
["Total Cuentas Por Pagar a Largo Plazo",{"$f":"SUM(B14:B15)","v":{"v":8328905.32,"d":"8,328,905"}}]
{"$rows_empty":21}
["               Licda: veronica pastranos peña                                      Kelvin Modesto Segura"]
["Encargado de Contabilidad","                 Director Financiero"]

{"sheet":"INGRESO Y EGRESO","index":8,"n_rows":71,"n_cols":2,"rows_kept":71,"merged":[[3,0,3,1],[4,0,4,1],[5,0,5,1],[27,0,27,1],[69,1,69,3],[70,1,70,3]]}
[]
[]
[]
["HOSP. GNRAL DE ESPECIALIDAD DR, MARIO TOLENTINO DIPP "]
["Nota # 17: Ingreso y Egreso"]
["Del ejercicio terminado Al 30 de Julio 2025"]
["Para el periodo terminado el 30 de mayo de 2025 la composición de los ingresos es como sigue:"]
[]
["Detalle",2025]
["Al 31 de enero 2023 y 2022 la composición de los ingresos es como sigue:"]
[]
["Detalle "]
[]
["Ingresos Fondo 100 (Para Serv. Personales)",{"v":36595718.77,"d":"36,595,718.77"}]
["Ingresos Fondo 100 (Para Serv. Objectales.)",{"v":6254655.17,"d":"6,254,655.17"}]
["Ingresos por Servicios cafeteria.",{"v":40000,"d":"40,000.00"}]
["Ingresos por Servicios a extrajero",{"v":107706,"d":"107,706.00"}]
["Ingresos por Odontologia.",{"v":105700,"d":"105,700.00"}]
["Ingresos por Servicios ARS",{"v":16484654.62,"d":"16,484,654.62"}]
[]
["Total Ingresos",{"$f":"SUM(B14:B20)","v":{"v":59588434.56,"d":"59,588,434.56"}}]
[]
[]
[]
[]
["Sueldos, Salarios y beneficios a colaboradores (Nota 12)"]
[]
["La composición de los saldos al 30 de mayo del 2025  es como sigue:"]
[]
[]
["Detalle ",2025]
[]
["Sueldos Fijos",{"v":36074261.35,"d":"36,074,261.35"}]
["Sueldo Personal Temporero",{"v":1522724.59,"d":"1,522,724.59"}]
["Sueldo Personal Retroactivo"]
["Contribuciones a la Seguridad Social",{"v":926236.68,"d":"926,236.68"}]
[]
["Contribuciones al Seguro de Riesgo Laboral",{"v":981100.7,"d":"981,100.70"}]
["Pensiones y Jubilaciones",{"$f":"+#REF!","v":{"$error":"#REF!"}}]
["Total sueldos, salarios y beneficios a empleados",{"$f":"B33+B34+B36+B37+B38","v":{"v":39504323.32000001,"d":"39,504,323.32"}}]
[]
[]
[]
[null," "]
["Suministro y Materiales para consumo (Nota 13)"]
[]
["Detalle ",2025]
[]
["pagos a suplidores",{"v":25116708.42,"d":"25,116,708.42"}]
["Total Suministros y materiales para consumo"]
["Total Egreso",{"$f":"B40+B50","v":{"v":39504323.32000001,"d":"$39,504,323.32"}}]
[]
[]
["Sueldos, Salarios y beneficios a colaboradores (Nota 12)"]
[]
["Ingreso por servicio de las  ARS  (Nota 12)"]
[]
[]
["Suministro y Materiales para consumo (Nota 13)"]
{"$rows_empty":9}
["Licda. Veronica pastranos"]
["Encargado de Contabilidad","Kelvin modesto Segura Herasme"]
[null,"Director Financiero"]